fUST/lending_fUST_20250207
["ID","MTS","AMOUNT","RATE_DAILY","PERIOD"]
[352015735,1738881046533,-1968.13,0.00014383,2]
[352015736,1738881046542,-513.06,0.00014383,2]
[352015738,1738881046551,-500.0,0.00014383,2]
[352015740,1738881046561,-6522.33,0.00014383,2]
[352015742,1738881046570,-500.0,0.00014383,2]
[352015744,1738881046579,-500.0,0.00014383,2]
[352015746,1738881046588,-500.0,0.00014383,2]
[352015748,1738881046597,-500.0,0.00014383,2]
[352015750,1738881046606,-660.43,0.00014383,2]
[352015752,1738881046615,-500.0,0.00014383,2]
[352015754,1738881046624,-1191.6,0.00014383,2]
[352015756,1738881046634,-1392.91,0.000144,2]
[352015758,1738881046643,-13262.49839917,0.00014431,2]
[352015760,1738881046652,-156.526555,0.00014481,2]
[352015762,1738881046661,-151.0,0.00014481,2]
[352015764,1738881046669,-156.526555,0.00014481,2]
[352015766,1738881046678,-151.0,0.00014481,2]
[352015768,1738881046687,-151.0,0.00014481,2]
[352015770,1738881046696,-151.0,0.00014481,2]
[352015771,1738881046705,-151.0,0.00014481,2]
[352015773,1738881046715,-151.0,0.00014481,2]
[352015775,1738881046727,-1009.34085419,0.00014481,2]
[352015777,1738881046736,-503.08834129,0.00014489,2]
[352015779,1738881046746,-1000.0,0.00014495,2]
[352015781,1738881046756,-151.0,0.0001452,2]
[352015783,1738881046765,-500.0,0.0001452,2]
[352015785,1738881046775,-178.365492,0.0001452,2]
[352015787,1738881046786,-178.365492,0.0001452,2]
[352015789,1738881046796,-151.0,0.0001452,2]
[352015791,1738881046805,-151.0,0.0001452,2]
[352015793,1738881046816,-186.426286,0.0001452,2]
[352015795,1738881046826,-500.0,0.0001452,2]
[352015797,1738881046840,-186.426286,0.0001452,2]
[352015799,1738881046853,-500.0,0.0001452,2]
[352015801,1738881046863,-153.392887,0.0001452,2]
[352015803,1738881046873,-151.0,0.0001452,2]
[352015805,1738881046883,-151.0,0.0001452,2]
[352015807,1738881046892,-500.0,0.0001452,2]
[352015809,1738881046901,-151.0,0.0001452,2]
[352015811,1738881046910,-827.106435,0.0001452,2]
[352015813,1738881046920,-151.0,0.0001452,2]
[352015815,1738881046929,-827.106435,0.0001452,2]
[352015817,1738881046939,-151.0,0.0001452,2]
[352015819,1738881046947,-151.0,0.0001452,2]
[352015821,1738881046958,-151.0,0.0001452,2]
[352015823,1738881046967,-151.0,0.0001452,2]
[352015825,1738881046979,-522.25,0.0001452,2]
[352015826,1738881046988,-500.0,0.0001452,2]
[352015828,1738881046998,-500.0,0.0001452,2]
[352015830,1738881047007,-500.0,0.0001452,2]
[352015832,1738881047017,-500.0,0.0001452,2]
[352015834,1738881047026,-796.75,0.0001452,2]
[352015836,1738881047035,-547.35,0.0001452,2]
[352015838,1738881047045,-500.0,0.0001452,2]
[352015840,1738881047055,-1565.22,0.0001452,2]
[352015842,1738881047065,-739.29,0.0001452,2]
[352015844,1738881047075,-567.17,0.0001452,2]
[352015846,1738881047084,-626.44,0.0001452,2]
[352015848,1738881047094,-500.0,0.0001452,2]
[352015850,1738881047105,-172.032232,0.0001452,2]
[352015852,1738881047117,-1968.13,0.0001452,2]
[352015854,1738881047127,-513.06,0.0001452,2]
[352015856,1738881047136,-500.0,0.0001452,2]
[352015858,1738881047147,-6522.33,0.0001452,2]
[352015860,1738881047159,-500.0,0.0001452,2]
[352015862,1738881047169,-500.0,0.0001452,2]
[352015864,1738881047178,-151.0,0.0001452,2]
[352015866,1738881047189,-500.0,0.0001452,2]
[352015868,1738881047199,-151.0,0.0001452,2]
[352015869,1738881047208,-500.0,0.0001452,2]
[352015870,1738881047218,-151.0,0.0001452,2]
[352015871,1738881047231,-660.43,0.0001452,2]
[352015872,1738881047241,-151.0,0.0001452,2]
[352015873,1738881047251,-500.0,0.0001452,2]
[352015874,1738881047263,-1191.6,0.0001452,2]
[352015875,1738881047277,-151.0,0.0001452,2]
[352015876,1738881047287,-489.146,0.00014556,2]
[352015877,1738881047297,-1196.96674125,0.0001459,2]
[352015878,1738881047306,-156.277,0.00014592,2]
[352015879,1738881047315,-575.0,0.000146,5]
[352015880,1738881047326,-150.0,0.00014615,2]
[352015881,1738881047336,-210.845,0.00014615,2]
[352015882,1738881047346,-327.0,0.0001464,2]
[352015883,1738881047356,-500.0,0.00014657,2]
[352015884,1738881047365,-500.0,0.00014657,2]
[352015885,1738881047376,-553.43224383,0.00014657,2]
[352015886,1738881047386,-500.0,0.00014657,2]
[352015887,1738881047396,-522.25,0.00014657,2]
[352015888,1738881047405,-500.0,0.00014657,2]
[352015889,1738881047416,-502.40238646,0.00014657,2]
[352015890,1738881047427,-397.373723,0.00014657,2]
[352015892,1738881047437,-397.373723,0.00014657,2]
[352015894,1738881047447,-151.0,0.00014657,2]
[352015896,1738881047458,-500.0,0.00014657,2]
[352015898,1738881047469,-500.0,0.00014657,2]
[352015901,1738881047483,-796.75,0.00014657,2]
[352015902,1738881047493,-547.35,0.00014657,2]
[352015904,1738881047503,-500.0,0.00014657,2]
[352015907,1738881047513,-1565.22,0.00014657,2]
[352015908,1738881047523,-739.29,0.00014657,2]
[352015910,1738881047533,-567.17,0.00014657,2]
[352015913,1738881047543,-626.44,0.00014657,2]
[352015914,1738881047553,-500.0,0.00014657,2]
[352015916,1738881047564,-1968.13,0.00014657,2]
[352015918,1738881047574,-513.06,0.00014657,2]
[352015920,1738881047584,-296.22080225,0.00014657,2]
[352015922,1738881047594,-6522.33,0.00014657,2]
[352015924,1738881047604,-500.0,0.00014657,2]
[352015926,1738881047613,-219.82542799,0.00014657,2]
[352015928,1738881047623,-500.0,0.00014657,2]
[352015931,1738881047634,-500.0,0.00014657,2]
[352015933,1738881047644,-660.43,0.00014657,2]
[352015935,1738881047654,-500.0,0.00014657,2]
[352015948,1738881047665,-1191.6,0.00014657,2]
[352015951,1738881047810,-1196.96674125,0.0001469,2]
[352015953,1738881047821,-151.0,0.00014693,2]
[352015955,1738881047831,-151.0,0.00014693,2]
[352015957,1738881047841,-172.084125,0.00014693,2]
[352015959,1738881047852,-172.084125,0.00014693,2]
[352015961,1738881047862,-439.849649,0.00014693,2]
[352015963,1738881047873,-151.0,0.00014693,2]
[352015965,1738881047883,-439.849649,0.00014693,2]
[352015967,1738881047893,-37952.44932551,0.00014694,2]
[352015969,1738881047903,-178.365492,0.00014694,2]
[352015971,1738881047913,-178.365492,0.00014694,2]
[352015973,1738881047924,-151.0,0.00014694,2]
[352015975,1738881047935,-186.426286,0.00014694,2]
[352015977,1738881047945,-186.426286,0.00014694,2]
[352015979,1738881047956,-151.0,0.00014694,2]
[352015981,1738881047967,-151.0,0.00014694,2]
[352015983,1738881047980,-151.0,0.00014694,2]
[352015985,1738881047991,-151.0,0.00014694,2]
[352015987,1738881048002,-156.526555,0.00014694,2]
[352015989,1738881048012,-156.526555,0.00014694,2]
[352015991,1738881048026,-151.0,0.00014694,2]
[352015993,1738881048035,-151.0,0.00014694,2]
[352015995,1738881048045,-151.0,0.00014694,2]
[352015997,1738881048056,-151.0,0.00014694,2]
[352015999,1738881048066,-151.0,0.00014694,2]
[352016001,1738881048076,-537.0,0.00014712,2]
[352016003,1738881048086,-1975.0,0.00014712,2]
[352016005,1738881048097,-2297.0,0.00014712,2]
[352016007,1738881048113,-396.0,0.00014712,2]
[352016010,1738881048124,-151.0,0.00014712,2]
[352016012,1738881048135,-151.0,0.00014712,2]
[352016013,1738881048147,-151.0,0.00014712,2]
[352016015,1738881048158,-153.5547867,0.00014712,2]
[352016018,1738881048170,-153.0,0.00014712,2]
[352016020,1738881048181,-153.0,0.00014712,2]
[352016022,1738881048192,-306.0,0.00014712,2]
[352016024,1738881048203,-1200.0,0.00014717,2]
[352016026,1738881048214,-244.136295,0.00014772,2]
[352016028,1738881048227,-151.0,0.00014772,2]
[352016030,1738881048238,-827.106435,0.00014772,2]
[352016032,1738881048249,-151.0,0.00014772,2]
[352016034,1738881048260,-827.106435,0.00014772,2]
[352016036,1738881048270,-243.755405,0.00014772,2]
[352016037,1738881048280,-151.0,0.00014772,2]
[352016039,1738881048290,-151.0,0.00014772,2]
[352016041,1738881048301,-1196.96674125,0.0001479,2]
[352016043,1738881048311,-151.0,0.00014794,2]
[352016045,1738881048322,-151.0,0.00014794,2]
[352016048,1738881048333,-500.0,0.00014794,2]
[352016049,1738881048343,-500.0,0.00014794,2]
[352016051,1738881048353,-500.0,0.00014794,2]
[352016053,1738881048364,-522.25,0.00014794,2]
[352016055,1738881048375,-500.0,0.00014794,2]
[352016058,1738881048386,-500.0,0.00014794,2]
[352016060,1738881048398,-500.0,0.00014794,2]
[352016062,1738881048408,-796.75,0.00014794,2]
[352016063,1738881048418,-547.35,0.00014794,2]
[352016066,1738881048430,-523.21356832,0.00014794,2]
[352016068,1738881048441,-1565.22,0.00014794,2]
[352016070,1738881048452,-739.29,0.00014794,2]
[352016072,1738881048463,-567.17,0.00014794,2]
[352016074,1738881048472,-626.44,0.00014794,2]
[352016076,1738881048486,-500.0,0.00014794,2]
[352016078,1738881048497,-1968.13,0.00014794,2]
[352016080,1738881048507,-513.06,0.00014794,2]
[352016082,1738881048518,-6522.33,0.00014794,2]
[352016084,1738881048530,-500.0,0.00014794,2]
[352016085,1738881048541,-500.0,0.00014794,2]
[352016087,1738881048552,-377.58071974,0.00014794,2]
[352016090,1738881048563,-660.43,0.00014794,2]
[352016092,1738881048574,-298.47526033,0.00014794,2]
[352016094,1738881048586,-1191.6,0.00014794,2]
[352016096,1738881048597,-163.159487,0.00014825,5]
[352016098,1738881048609,-354.57239146,0.00014827,2]
[352016100,1738881048620,-1014.4853805,0.00014849,2]
[352016102,1738881048630,-1196.96674125,0.0001489,2]
[352016104,1738881048642,-151.0,0.000149,2]
[352016106,1738881048652,-172.084125,0.000149,2]
[352016108,1738881048663,-172.084125,0.000149,2]
[352016110,1738881048674,-439.849649,0.000149,2]
[352016112,1738881048687,-151.0,0.000149,2]
[352016114,1738881048697,-439.849649,0.000149,2]
[352016116,1738881048707,-3145.93606421,0.000149,2]
[352016118,1738881048718,-15782.28294299,0.00014917,2]
[352016120,1738881048732,-151.0,0.00014931,2]
[352016122,1738881048743,-500.0,0.00014931,2]
[352016124,1738881048753,-500.0,0.00014931,2]
[352016126,1738881048763,-500.0,0.00014931,2]
[352016128,1738881048775,-522.25,0.00014931,2]
[352016130,1738881048786,-522.44000185,0.00014931,2]
[352016132,1738881048797,-397.373723,0.00014931,2]
[352016134,1738881048806,-397.373723,0.00014931,2]
[352016136,1738881048816,-500.0,0.00014931,2]
[352016138,1738881048826,-500.0,0.00014931,2]
[352016140,1738881048837,-796.75,0.00014931,2]
[352016142,1738881048848,-547.35,0.00014931,2]
[352016144,1738881048858,-1565.22,0.00014931,2]
[352016146,1738881048870,-739.29,0.00014931,2]
[352016148,1738881048882,-567.17,0.00014931,2]
[352016150,1738881048893,-626.44,0.00014931,2]
[352016152,1738881048903,-500.0,0.00014931,2]
[352016154,1738881048914,-1968.13,0.00014931,2]
[352016156,1738881048925,-513.06,0.00014931,2]
[352016158,1738881048935,-6522.33,0.00014931,2]
[352016160,1738881048945,-301.16658873,0.00014931,2]
[352016162,1738881048955,-153.52927939,0.00014931,2]
[352016164,1738881048966,-660.43,0.00014931,2]
[352016166,1738881048979,-1191.6,0.00014931,2]
[352016168,1738881048988,-500.0,0.00014973,2]
[352016170,1738881048999,-522.98639351,0.00014973,2]
[352016172,1738881049010,-500.0,0.00014973,2]
[352016174,1738881049021,-500.0,0.00014973,2]
[352016176,1738881049031,-500.0,0.00014973,2]
[352016178,1738881049041,-500.0,0.00014973,2]
[352016180,1738881049051,-500.0,0.00014973,2]
[352016182,1738881049060,-500.0,0.00014973,2]
[352016184,1738881049070,-500.0,0.00014973,2]
[352016186,1738881049081,-500.0,0.00014973,2]
[352016188,1738881049092,-500.0,0.00014973,2]
[352016190,1738881049102,-1196.96674125,0.0001499,2]
[352016192,1738881049116,-151.0,0.00014999,2]
[352016193,1738881049126,-50849.75124454,0.00015,2]
[352016217,1738881092125,500.0,0.00011505,2]
[352016218,1738881297054,500.0,0.00011505,2]
[352016221,1738881835581,-2470.76754506,0.00012719,2]
[352016222,1738881849935,-300.0,0.00012846,2]
[352016223,1738881856324,-14784.8361881,0.00012847,2]
[352016228,1738882046110,-216.74707501,0.0001369,2]
[352016229,1738882046134,-300.0,0.00013696,2]
[352016230,1738882046159,-319.432663,0.00013697,2]
[352016231,1738882046180,-500.0,0.00013697,2]
[352016232,1738882046200,-221.31746307,0.00013697,2]
[352016233,1738882046222,-500.0,0.00013697,2]
[352016234,1738882046244,-500.0,0.00013697,2]
[352016235,1738882046266,-213.59196233,0.00013697,2]
[352016236,1738882047110,-286.40803767,0.00013697,2]
[352016237,1738882047131,-274.89135377,0.00013697,2]
[352016238,1738882047152,-166.19306833,0.00013697,2]
[352016239,1738882047175,-261.73011341,0.00013697,2]
[352016280,1738882232206,-314.6948374,0.00012862,2]
[352016281,1738882232216,-354.57239153,0.00013598,2]
[352016283,1738882232225,-300.0,0.00013696,2]
[352016285,1738882232236,-238.26988659,0.00013697,2]
[352016287,1738882232245,-500.0,0.00013697,2]
[352016289,1738882232254,-500.0,0.00013697,2]
[352016291,1738882232264,-500.0,0.00013697,2]
[352016293,1738882232273,-500.0,0.00013697,2]
[352016295,1738882232282,-500.0,0.00013697,2]
[352016297,1738882232291,-110.80964167,0.00013697,2]
[352016299,1738882232303,-389.19035833,0.00013697,2]
[352016301,1738882232312,-500.0,0.00013697,2]
[352016303,1738882232322,-500.0,0.00013697,2]
[352016305,1738882232331,-500.0,0.00013697,2]
[352016307,1738882232340,-500.0,0.00013697,2]
[352016309,1738882232350,-500.0,0.00013697,2]
[352016311,1738882232359,-500.0,0.00013697,2]
[352016313,1738882232368,-82.39700323,0.00013697,2]
[352016712,1738882238138,-417.60299677,0.00013697,2]
[352016714,1738882238148,-500.0,0.00013697,2]
[352016716,1738882238158,-500.0,0.00013697,2]
[352016718,1738882238167,-500.0,0.00013697,2]
[352016720,1738882238177,-500.0,0.00013697,2]
[352016722,1738882238187,-500.0,0.00013697,2]
[352016724,1738882238196,-500.0,0.00013697,2]
[352016726,1738882238205,-500.0,0.00013697,2]
[352016728,1738882238215,-500.0,0.00013697,2]
[352016730,1738882238224,-500.0,0.00013697,2]
[352016732,1738882238233,-241.32537818,0.00013697,2]
[352016734,1738882238243,-500.0,0.00013697,2]
[352016736,1738882238253,-500.0,0.00013697,2]
[352016738,1738882238263,-500.0,0.00013697,2]
[352016740,1738882238272,-500.0,0.00013697,2]
[352016743,1738882238282,-500.0,0.00013698,2]
[352016745,1738882238291,-500.0,0.00013698,2]
[352016747,1738882238301,-500.0,0.00013698,2]
[352016749,1738882238310,-500.0,0.00013698,2]
[352016751,1738882238320,-500.0,0.00013698,2]
[352016753,1738882238329,-500.0,0.00013698,2]
[352016755,1738882238338,-500.0,0.00013698,2]
[352016757,1738882238348,-500.0,0.00013698,2]
[352016759,1738882238358,-500.0,0.00013698,2]
[352016761,1738882238368,-500.0,0.00013698,2]
[352016763,1738882238377,-500.0,0.00013698,2]
[352016765,1738882238386,-500.0,0.00013698,2]
[352016767,1738882238395,-500.0,0.00013698,2]
[352016769,1738882238404,-500.0,0.00013698,2]
[352016770,1738882238414,-500.0,0.00013698,2]
[352016771,1738882238423,-500.0,0.00013698,2]
[352016772,1738882238433,-500.0,0.00013698,2]
[352016773,1738882238442,-500.0,0.00013698,2]
[352016774,1738882238451,-500.0,0.00013698,2]
[352016775,1738882238462,-500.0,0.00013698,2]
[352016776,1738882238473,-500.0,0.00013698,2]
[352016777,1738882238482,-500.0,0.00013698,2]
[352016778,1738882238491,-500.0,0.00013698,2]
[352016779,1738882238500,-500.0,0.00013698,2]
[352016780,1738882238510,-500.0,0.00013698,2]
[352016781,1738882238520,-500.0,0.00013698,2]
[352016782,1738882238529,-564.3748124,0.00013698,2]
[352016783,1738882238539,-500.0,0.00013698,2]
[352016784,1738882238549,-500.0,0.00013698,2]
[352016785,1738882238559,-575.55527857,0.00013698,2]
[352016786,1738882238568,-530.22749028,0.00013698,2]
[352016787,1738882238578,-500.0,0.00013698,2]
[352016788,1738882238588,-500.0,0.00013698,2]
[352016789,1738882238597,-500.0,0.00013698,2]
[352016790,1738882238608,-500.0,0.00013698,2]
[352016791,1738882238617,-500.0,0.00013698,2]
[352016792,1738882238627,-500.0,0.00013698,2]
[352016793,1738882238637,-500.0,0.00013698,2]
[352016794,1738882238647,-500.0,0.00013698,2]
[352016795,1738882238656,-500.0,0.00013698,2]
[352016796,1738882238666,-500.0,0.00013698,2]
[352016797,1738882238675,-500.0,0.00013698,2]
[352016798,1738882238685,-500.0,0.00013698,2]
[352016799,1738882238697,-500.0,0.00013698,2]
[352016800,1738882238707,-500.0,0.00013698,2]
[352016801,1738882238717,-500.0,0.00013698,2]
[352016802,1738882238727,-500.0,0.00013698,2]
[352016803,1738882238738,-500.0,0.00013698,2]
[352016804,1738882238748,-500.0,0.00013698,2]
[352016805,1738882238757,-500.0,0.00013698,2]
[352016806,1738882238767,-500.0,0.00013698,2]
[352016807,1738882238776,-500.0,0.00013698,2]
[352016808,1738882238786,-500.0,0.00013698,2]
[352016809,1738882238795,-500.0,0.00013698,2]
[352016810,1738882238804,-500.0,0.00013698,2]
[352016811,1738882238814,-500.0,0.00013698,2]
[352016812,1738882238824,-236.22024037,0.00013698,2]
[352016813,1738882238834,-500.0,0.00013698,2]
[352016814,1738882238845,-500.0,0.00013698,2]
[352016815,1738882238854,-500.0,0.00013698,2]
[352016816,1738882238864,-500.0,0.00013698,2]
[352016817,1738882238874,-500.0,0.00013698,2]
[352016818,1738882238884,-500.0,0.00013698,2]
[352016819,1738882238893,-500.0,0.00013698,2]
[352016820,1738882238903,-500.0,0.00013698,2]
[352016821,1738882238912,-500.0,0.00013698,2]
[352016822,1738882238922,-500.0,0.00013698,2]
[352016823,1738882238932,-500.0,0.00013698,2]
[352016824,1738882238942,-500.0,0.00013698,2]
[352016825,1738882238951,-500.0,0.00013698,2]
[352016826,1738882238961,-500.0,0.00013698,2]
[352016827,1738882238971,-500.0,0.00013698,2]
[352016828,1738882238980,-500.0,0.00013698,2]
[352016829,1738882238989,-500.0,0.00013698,2]
[352016830,1738882239000,-500.0,0.00013698,2]
[352016831,1738882239009,-500.0,0.00013698,2]
[352016832,1738882239018,-500.0,0.00013698,2]
[352016833,1738882239028,-500.0,0.00013698,2]
[352016834,1738882239037,-500.0,0.00013698,2]
[352016835,1738882239047,-500.0,0.00013698,2]
[352016836,1738882239056,-500.0,0.00013698,2]
[352016837,1738882239065,-500.0,0.00013698,2]
[352016838,1738882239074,-500.0,0.00013698,2]
[352016839,1738882239083,-500.0,0.00013698,2]
[352016840,1738882239093,-500.0,0.00013698,2]
[352016841,1738882239102,-504.70852396,0.00013698,2]
[352016842,1738882239112,-500.0,0.00013698,2]
[352016843,1738882239122,-500.0,0.00013698,2]
[352016844,1738882239132,-500.0,0.00013698,2]
[352016845,1738882239143,-500.0,0.00013698,2]
[352016846,1738882239153,-500.0,0.00013698,2]
[352016847,1738882239163,-500.0,0.00013698,2]
[352016848,1738882239173,-500.0,0.00013698,2]
[352016849,1738882239183,-500.0,0.00013698,2]
[352016850,1738882239193,-500.0,0.00013698,2]
[352016851,1738882239202,-500.0,0.00013698,2]
[352016852,1738882239212,-500.0,0.00013698,2]
[352016853,1738882239222,-500.0,0.00013698,2]
[352016854,1738882239233,-500.0,0.00013698,2]
[352016855,1738882239242,-500.0,0.00013698,2]
[352016856,1738882239253,-500.0,0.00013698,2]
[352016857,1738882239263,-500.0,0.00013698,2]
[352016858,1738882239272,-500.0,0.00013698,2]
[352016859,1738882239282,-500.0,0.00013698,2]
[352016860,1738882239291,-500.0,0.00013698,2]
[352016861,1738882239300,-500.0,0.00013698,2]
[352016862,1738882239309,-500.0,0.00013698,2]
[352016863,1738882239319,-500.0,0.00013698,2]
[352016864,1738882239328,-500.0,0.00013698,2]
[352016865,1738882239337,-506.56351704,0.00013698,2]
[352016866,1738882239347,-500.0,0.00013698,2]
[352016867,1738882239356,-500.0,0.00013698,2]
[352016868,1738882239365,-500.0,0.00013698,2]
[352016869,1738882239375,-500.0,0.00013698,2]
[352016870,1738882239384,-500.0,0.00013698,2]
[352016871,1738882239394,-500.0,0.00013698,2]
[352016872,1738882239403,-500.0,0.00013698,2]
[352016875,1738882239566,-500.0,0.00013698,2]
[352016876,1738882239576,-500.0,0.00013698,2]
[352016877,1738882239585,-500.0,0.00013698,2]
[352016878,1738882239594,-500.0,0.00013698,2]
[352016879,1738882239603,-500.0,0.00013698,2]
[352016880,1738882239612,-500.0,0.00013698,2]
[352016881,1738882239622,-500.0,0.00013698,2]
[352016882,1738882239631,-500.0,0.00013698,2]
[352016883,1738882239640,-500.0,0.00013698,2]
[352016884,1738882239650,-500.0,0.00013698,2]
[352016885,1738882239660,-500.0,0.00013698,2]
[352016886,1738882239670,-500.0,0.00013698,2]
[352016887,1738882239679,-500.0,0.00013698,2]
[352016888,1738882239689,-500.0,0.00013698,2]
[352016889,1738882239698,-500.0,0.00013698,2]
[352016890,1738882239707,-500.0,0.00013698,2]
[352016891,1738882239716,-514.58075467,0.00013698,2]
[352016892,1738882239725,-500.0,0.00013698,2]
[352016893,1738882239735,-500.0,0.00013698,2]
[352016894,1738882239744,-500.0,0.00013698,2]
[352016895,1738882239753,-500.0,0.00013698,2]
[352016896,1738882239763,-500.0,0.00013698,2]
[352016897,1738882239773,-500.0,0.00013698,2]
[352016898,1738882239783,-510.62274121,0.00013698,2]
[352016900,1738882239792,-500.0,0.00013698,2]
[352016901,1738882239801,-500.0,0.00013698,2]
[352016903,1738882239810,-500.0,0.00013698,2]
[352016906,1738882239820,-502.09692297,0.00013698,2]
[352016907,1738882239830,-500.0,0.00013698,2]
[352016910,1738882239839,-500.0,0.00013698,2]
[352016911,1738882239848,-500.0,0.00013698,2]
[352016913,1738882239857,-500.0,0.00013698,2]
[352016915,1738882239867,-500.0,0.00013698,2]
[352016916,1738882239876,-500.0,0.00013698,2]
[352016917,1738882239885,-500.0,0.00013698,2]
[352016918,1738882239894,-500.0,0.00013698,2]
[352016919,1738882239903,-500.0,0.00013698,2]
[352016920,1738882239912,-503.76447749,0.00013698,2]
[352016921,1738882239921,-500.0,0.00013698,2]
[352016922,1738882239931,-500.0,0.00013698,2]
[352016923,1738882239940,-504.05673413,0.00013698,2]
[352016924,1738882239950,-500.0,0.00013698,2]
[352016925,1738882239971,-500.0,0.00013698,2]
[352016926,1738882239982,-796.75,0.00013698,2]
[352016927,1738882239992,-501.56075748,0.00013698,2]
[352016928,1738882240002,-500.0,0.00013698,2]
[352016929,1738882240012,-500.0,0.00013698,2]
[352016930,1738882240022,-500.0,0.00013698,2]
[352016932,1738882240032,-500.0,0.00013698,2]
[352016934,1738882240043,-500.0,0.00013698,2]
[352016935,1738882240052,-500.0,0.00013698,2]
[352016936,1738882240063,-500.0,0.00013698,2]
[352016937,1738882240074,-500.0,0.00013698,2]
[352016938,1738882240084,-500.0,0.00013698,2]
[352016939,1738882240094,-500.0,0.00013698,2]
[352016940,1738882240104,-500.0,0.00013698,2]
[352016941,1738882240114,-500.0,0.00013698,2]
[352016942,1738882240124,-500.0,0.00013698,2]
[352016943,1738882240134,-500.0,0.00013698,2]
[352016944,1738882240144,-500.0,0.00013698,2]
[352016945,1738882240154,-500.0,0.00013698,2]
[352016946,1738882240164,-500.0,0.00013698,2]
[352016947,1738882240173,-500.0,0.00013698,2]
[352016948,1738882240183,-500.0,0.00013698,2]
[352016949,1738882240193,-500.0,0.00013698,2]
[352016950,1738882240203,-500.0,0.00013698,2]
[352016951,1738882240212,-507.81961295,0.00013698,2]
[352016952,1738882240222,-500.0,0.00013698,2]
[352016953,1738882240232,-515.63393805,0.00013698,2]
[352016954,1738882240242,-500.0,0.00013698,2]
[352016955,1738882240252,-500.0,0.00013698,2]
[352016956,1738882240261,-500.0,0.00013698,2]
[352016957,1738882240271,-500.0,0.00013698,2]
[352016958,1738882240281,-500.0,0.00013698,2]
[352016959,1738882240292,-380.35402336,0.00013698,2]
[352016960,1738882240302,-500.0,0.00013698,2]
[352016961,1738882240312,-500.0,0.00013698,2]
[352016962,1738882240322,-500.0,0.00013698,2]
[352016963,1738882240332,-500.0,0.00013698,2]
[352016964,1738882240342,-500.0,0.00013698,2]
[352016965,1738882240352,-500.0,0.00013698,2]
[352016966,1738882240363,-500.0,0.00013698,2]
[352016967,1738882240372,-500.0,0.00013698,2]
[352016968,1738882240382,-547.35,0.00013698,2]
[352016969,1738882240392,-500.0,0.00013698,2]
[352016970,1738882240402,-500.0,0.00013698,2]
[352016971,1738882240412,-500.0,0.00013698,2]
[352016972,1738882240422,-500.0,0.00013698,2]
[352016973,1738882240432,-500.0,0.00013698,2]
[352016974,1738882240441,-500.0,0.00013698,2]
[352016975,1738882240451,-500.0,0.00013698,2]
[352016976,1738882240464,-500.0,0.00013698,2]
[352016977,1738882240473,-500.0,0.00013698,2]
[352016978,1738882240483,-500.0,0.00013698,2]
[352016979,1738882240493,-204.70956199,0.00013698,2]
[352016980,1738882240503,-500.0,0.00013698,2]
[352016981,1738882240512,-500.0,0.00013698,2]